bitfinex/quotes_ETHUSD_20220105
["timestamp","ask_amount","ask_price","bid_price","bid_amount"]
[1641415679790,1.74492502,3613.7,3612.4,0.00909477]
[1641415679791,0.328,3613.1,3612.4,0.00909477]
[1641415679990,0.328,3613.0,3612.4,0.00909477]
[1641415680190,0.328,3612.9,3612.4,0.00909477]
[1641415680391,1.74492502,3613.7,3612.3,0.0096632]
[1641415680392,0.328,3612.8,3612.3,0.0096632]
[1641415680696,1.02023,3612.7,3612.3,0.0096632]
[1641415681138,1.02023,3612.7,3612.1,0.01080004]
[1641415681737,1.02023,3612.7,3612.4,0.63236852]
[1641415682139,1.02023,3612.7,3612.6,1.16703656]
[1641415682539,1.02023,3612.7,3612.6,1.17499449]
[1641415682940,1.02023,3612.7,3612.6,0.00795793]
[1641415683140,0.69223,3612.7,3612.6,0.00795793]
[1641415683339,0.69223,3612.7,3612.5,0.00852635]
[1641415683544,0.328,3612.7,3611.4,0.13819997]
[1641415683742,1.38459,3612.1,3611.4,2.83756605]
[1641415683942,0.328,3612.0,3611.5,0.00568424]
[1641415684142,0.328,3612.0,3611.4,2.69936608]
[1641415684344,0.328,3612.0,3611.4,3.28287655]
[1641415684588,0.0022737,3611.9,3611.4,3.24287655]
[1641415684786,0.69237,3611.7,3611.1,3.75713876]
[1641415684991,0.328,3611.6,3611.1,3.75713876]
[1641415685191,2.07788,3611.5,3611.2,0.00170527]
[1641415685391,2.07788,3611.5,3610.1,0.00459568]
[1641415685392,5.828,3611.4,3610.1,0.00459568]
[1641415685590,0.6926223,3611.0,3610.8,0.00397896]
[1641415685790,2.40591,3610.9,3610.8,0.00397896]
[1641415686190,2.40591,3610.9,3610.8,0.00227369]
[1641415686592,2.40591,3610.9,3610.3,0.00511581]
[1641415687393,2.40591,3610.9,3610.4,1.23839995]
[1641415687694,2.40591,3610.9,3610.5,0.00397896]
[1641415688324,2.40591,3610.9,3610.3,0.00511581]
[1641415688521,2.40591,3610.9,3610.4,1.40940529]
[1641415688723,1.3854582,3610.8,3610.3,0.00511581]
[1641415688924,0.0028,3610.5,3610.0,0.001]
[1641415689126,0.0028,3610.5,3609.1,7.0748839]
[1641415689127,4.098,3610.1,3609.1,1.4922239]
[1641415689328,4.098,3610.1,3609.0,5.098e-05]
[1641415689329,1.38603,3609.7,3609.0,5.098e-05]
[1641415689521,2.93256246,3609.6,3609.2,0.00738951]
[1641415689730,2.93256246,3609.6,3608.7,1.39500098]
[1641415689731,8.54311,3609.5,3608.7,1.39500098]
[1641415689927,8.54311,3609.5,3608.2,2.79545617]
[1641415689928,1.386284,3609.2,3608.2,2.79545617]
[1641415690127,1.386284,3609.2,3608.8,0.00227369]
[1641415690128,1.02115,3609.1,3608.8,0.00227369]
[1641415690330,1.02115,3609.1,3608.5,0.34393216]
[1641415690529,4.2,3608.9,3608.1,6.26169037]
[1641415690734,6.05,3608.7,3608.1,0.71721722]
[1641415690928,0.328,3608.6,3608.2,0.00227369]
[1641415691134,0.69318,3608.5,3608.2,0.00227369]
[1641415691331,0.69318,3608.5,3608.4,1.29306322]
[1641415691534,1.02118,3608.5,3608.2,0.00227369]
[1641415691741,1.02118,3608.5,3608.4,0.00113684]
[1641415691929,1.02118,3608.5,3607.4,0.00682108]
[1641415692179,0.328,3608.5,3608.4,8.41650103]
[1641415692387,0.328,3608.9,3608.6,3.45]
[1641415692581,2.07292502,3609.4,3608.6,3.45]
[1641415692780,1.74776714,3609.3,3608.6,3.45]
[1641415692982,1.74776714,3609.3,3608.5,0.1773]
[1641415693181,1.74776714,3609.3,3608.4,0.56877472]
[1641415693182,0.33027369,3609.2,3608.4,0.56877472]
[1641415693383,0.69288,3609.1,3608.6,0.00113685]
[1641415693581,0.328,3609.0,3608.5,0.00170527]
[1641415693781,0.32913685,3609.0,3608.5,0.01079374]
[1641415694185,0.33286128,3609.0,3608.6,0.00113685]
[1641415694583,0.63193211,3608.9,3608.6,0.00113685]
[1641415694887,0.33286128,3609.0,3608.6,0.00113685]
[1641415694888,0.69308,3608.7,3608.6,0.00113685]
[1641415695086,1.02108,3608.7,3608.6,0.00113685]
[1641415695932,1.02108,3608.7,3608.5,9.374e-05]
[1641415695933,7.85,3608.6,3608.5,9.374e-05]
[1641415696132,7.85,3608.6,3606.3,0.744849]
[1641415696133,7.85,3608.5,3606.3,0.744849]
[1641415696333,0.01225821,3607.2,3606.3,0.744849]
[1641415696533,0.01225821,3607.2,3607.1,0.00852635]
[1641415696732,0.328,3607.2,3607.1,0.00852635]
[1641415697031,4.95,3607.1,3606.3,1.23735671]
[1641415697231,4.75,3607.3,3606.3,1.19133567]
[1641415697437,1.38693,3606.8,3606.3,1.19133567]
[1641415697635,0.328,3606.7,3606.3,1.19133567]
[1641415697832,0.69345,3606.5,3606.3,1.19133567]
[1641415698034,0.69345,3606.5,3606.3,0.64882796]
[1641415698035,0.328,3606.4,3606.3,0.64882796]
[1641415699233,0.00113684,3606.6,3606.3,1.22613559]
[1641415699434,0.00113684,3606.6,3606.3,2.35169746]
[1641415699679,0.00372688,3606.4,3606.3,2.35169746]
[1641415700479,3.684e-05,3606.6,3606.3,2.35169746]
[1641415700680,3.684e-05,3606.6,3606.5,7.86200603]
[1641415700881,0.328,3608.0,3606.5,8.16200603]
[1641415701081,0.328,3608.0,3607.3,0.01272689]
[1641415701279,0.00738951,3607.9,3607.3,0.01272689]
[1641415701680,0.00682109,3607.8,3607.4,0.65041236]
[1641415701882,0.00682109,3607.8,3607.7,1.40503271]
[1641415702080,0.69306,3608.4,3607.7,1.40503271]
[1641415702382,0.328,3608.8,3607.7,1.40503271]
[1641415702383,0.0096632,3608.3,3607.7,1.40503271]
[1641415702781,0.00909478,3608.2,3607.4,0.65041236]
[1641415703182,0.69308,3608.3,3608.1,0.50095806]
[1641415703432,16.17819997,3609.4,3608.1,0.50095806]
[1641415703433,0.46619997,3609.4,3608.1,0.50095806]
[1641415703635,2.0,3610.0,3608.1,0.50095806]
[1641415703834,0.69284,3609.5,3608.1,0.51351008]
[1641415704034,0.69284,3609.5,3608.0,0.3065]
[1641415704035,0.00625266,3609.3,3609.2,1.10551947]
[1641415704234,0.328,3610.3,3609.2,1.74201947]
[1641415704235,0.00682108,3609.4,3609.2,1.74201947]
[1641415704436,0.00682108,3609.4,3609.3,0.67890612]
[1641415704637,0.01277268,3609.9,3607.8,5.8826]
[1641415704838,0.01277268,3609.9,3607.6,2.3693]
[1641415704839,0.00682108,3609.4,3607.6,2.3693]
[1641415705039,2.70569872,3609.7,3607.9,0.00170527]
[1641415705239,0.33709478,3609.8,3607.7,0.00284212]
[1641415705437,0.69293,3609.1,3607.7,0.00284212]
[1641415705638,0.60498588,3609.0,3607.6,0.00341054]
[1641415705842,0.01204016,3608.3,3607.6,0.00341054]
[1641415706041,0.278,3608.5,3607.7,5.5433]
[1641415706238,0.328,3608.5,3607.7,5.5433]
[1641415706436,0.328,3608.5,3607.8,0.00227369]
[1641415706437,0.00113685,3608.4,3607.8,0.00227369]
[1641415706837,1.31715046,3608.1,3607.8,0.00227369]
[1641415707682,0.00113685,3608.4,3607.9,0.62793941]
[1641415708083,0.00113685,3608.4,3608.0,0.00113685]
[1641415708482,3.685e-05,3608.4,3608.0,0.88883685]
[1641415708683,3.685e-05,3608.4,3608.1,5.5431]
[1641415708886,3.685e-05,3608.4,3608.1,5.54476842]
[1641415709085,3.685e-05,3608.4,3608.2,0.0011]
[1641415709288,3.685e-05,3608.4,3608.3,5.5428]
[1641415710393,0.32803685,3608.4,3608.3,5.5428]
[1641415710823,0.32803685,3608.4,3608.2,0.0011]
[1641415710824,3.15,3608.3,3608.2,0.0011]
[1641415711129,3.15,3608.3,3607.8,0.00337369]
[1641415711130,0.328,3608.3,3607.8,0.00337369]
[1641415711327,0.328,3608.3,3607.8,0.00341054]
[1641415711529,1.02123,3608.3,3607.8,0.00341054]
[1641415712130,3.32110055,3608.2,3607.8,0.00341054]
[1641415712330,0.328,3608.1,3607.8,0.00341054]
[1641415712832,0.328,3608.1,3607.9,0.00158123]
[1641415713231,0.328,3608.1,3608.0,0.0022737]
[1641415714332,3.32110055,3608.2,3608.0,0.0022737]
[1641415715389,0.69323,3608.3,3608.0,0.0022737]
[1641415716994,3.53797252,3608.3,3608.0,0.0022737]
[1641415717194,5.05,3608.1,3607.9,0.00158123]
[1641415717494,0.328,3608.2,3607.9,0.00158123]
[1641415717495,0.328,3608.0,3607.9,0.00158123]
[1641415717897,0.328,3608.0,3606.3,0.64882796]
[1641415717898,7.85,3607.9,3606.3,0.64882796]
[1641415718102,1.38705,3607.3,3606.3,1.16856804]
[1641415718322,1.3870216,3607.1,3606.5,0.00852635]
[1641415718523,0.328,3607.0,3606.5,0.00852635]
[1641415719025,0.69345,3606.8,3606.5,0.00852635]
[1641415719228,0.328,3606.7,3606.5,0.00852635]
[1641415722787,0.328,3606.7,3606.3,0.64882796]
[1641415722989,0.328,3606.7,3606.3,0.61060123]
[1641415723389,0.328,3606.7,3606.3,0.56060123]
[1641415723590,0.328,3606.7,3606.5,0.00122488]
[1641415723591,5.7,3606.6,3606.5,0.00122488]
[1641415723793,5.7,3606.6,3605.0,0.50862189]
[1641415723794,0.61749465,3605.6,3605.0,0.50862189]
[1641415723993,0.64376,3605.3,3604.3,0.97251711]
[1641415724193,0.64376,3605.3,3605.1,0.00795793]
[1641415724796,0.64376,3605.3,3604.5,0.01136847]
[1641415724993,0.44376,3605.3,3604.5,0.01136847]
[1641415725192,0.44376,3605.3,3604.9,1.19537651]
[1641415725594,0.44376,3605.3,3605.0,0.00852635]
[1641415726432,0.44376,3605.3,3605.2,0.54720345]
[1641415726634,0.44376,3605.3,3604.7,0.01023162]
[1641415726931,0.44376,3605.3,3604.2,2.68683175]
[1641415727133,0.69377,3604.5,3604.2,2.68683175]
[1641415727331,0.69377,3604.5,3604.3,0.01250531]
[1641415727733,1.02177,3604.5,3604.3,0.01250531]
[1641415727932,1.02177,3604.5,3604.2,2.68683175]
[1641415728335,1.02177,3604.5,3603.6,2.68683175]
[1641415728532,1.7157064,3604.5,3604.3,0.45]
[1641415728732,1.02177,3604.5,3604.3,0.45]
[1641415728932,1.02177,3604.5,3603.7,0.00341055]
[1641415728933,0.92177,3604.5,3603.7,0.00341055]
[1641415729132,0.92177,3604.5,3603.6,2.5902423]
[1641415729334,0.00397897,3604.4,3603.6,2.5902423]
[1641415729578,0.69386,3604.0,3603.7,0.61595723]
[1641415729780,1.38771,3604.1,3603.7,0.61595723]
[1641415729984,0.00113685,3603.9,3603.7,0.61595723]
[1641415730180,1.38771,3604.1,3602.9,0.01233848]
[1641415730181,0.00170527,3604.0,3602.9,0.01233848]
[1641415730583,2.08186,3604.2,3603.0,0.00397896]
[1641415730584,0.00113685,3603.9,3603.0,0.00397896]
[1641415730991,0.3302737,3604.1,3603.0,0.00397896]
[1641415731187,1.38791,3603.6,3603.0,0.00397896]
[1641415731389,1.28791,3603.6,3603.1,0.48197736]
[1641415731687,1.28791,3603.6,3603.2,0.00284211]
[1641415732890,1.8178147,3603.6,3603.2,0.00284211]
[1641415733188,1.28791,3603.6,3603.2,0.00284211]
[1641415734432,0.69394,3603.6,3603.2,1.15254006]
[1641415734632,0.00170527,3604.0,3603.3,0.00149279]
[1641415734834,1.33943527,3604.1,3603.4,7.65]
[1641415735034,1.33943527,3604.1,3603.4,7.65341054]
[1641415735234,1.33943527,3604.1,3603.5,0.00284211]
[1641415735536,0.03555986,3605.7,3603.5,0.00284211]
[1641415735537,1.28828483,3605.2,3603.5,0.00284211]
[1641415735745,2.77528,3605.8,3604.0,0.01241993]
[1641415735746,1.28828483,3605.3,3604.0,0.01241993]
[1641415735938,0.00284212,3604.5,3604.0,0.01241993]
[1641415736340,0.0022737,3604.4,3604.0,0.01241993]
[1641415736542,0.0022737,3604.4,3604.1,7.55753994]
[1641415736740,0.00170528,3604.3,3604.1,7.55753994]
[1641415737187,0.00113685,3604.2,3604.1,7.55753994]
[1641415737789,3.32110055,3606.8,3604.4,7.85]
[1641415737988,4.53834356,3607.1,3606.2,0.01241107]
[1641415737989,0.84057411,3607.1,3606.2,0.01241107]
[1641415738192,4.15810509,3607.4,3605.0,3.0]
[1641415738193,2.06052944,3607.4,3606.8,0.01292411]
[1641415738387,5.5588421,3607.9,3607.4,0.27457056]
[1641415738587,4.6334421,3607.9,3607.5,14.188]
[1641415738791,0.02046325,3607.8,3607.6,1.89655925]
[1641415738987,0.02046325,3607.8,3607.7,5.8717]
[1641415739188,4.6334421,3608.0,3607.7,5.8717]
[1641415739588,0.02103167,3607.9,3607.7,5.8717]
[1641415739989,0.02046325,3607.8,3607.7,5.5437]
[1641415740389,0.02046325,3607.8,3607.7,6.54385927]
[1641415740390,3.52046325,3607.8,3607.7,6.54385927]
[1641415740594,3.52046325,3607.8,3607.7,5.61555927]
[1641415741031,0.02046325,3607.8,3607.7,5.61555927]
[1641415741630,0.02046325,3607.8,3607.7,6.19354942]
[1641415741834,0.02046325,3607.8,3607.7,5.19339015]
[1641415742636,0.02046325,3607.8,3607.7,4.6154]
[1641415742836,0.02046325,3607.8,3607.5,8.316]
[1641415742837,7.7,3607.7,3607.5,8.316]
[1641415743237,4.9693264,3607.6,3607.5,2.75218]
[1641415743438,7.0496464,3607.6,3607.5,2.75218]
[1641415743638,10.38414252,3607.6,3607.5,2.75218]
[1641415743837,1.38688,3607.0,3606.3,0.13819997]
[1641415744041,1.38688,3607.0,3606.4,5.5453]
[1641415744337,2.7648,3606.6,3606.5,0.00625266]
[1641415744580,2.7648,3606.6,3606.5,5.55175266]
[1641415744983,2.7648,3606.6,3606.5,5.55284141]
[1641415745183,5.50454348,3606.6,3606.5,5.55284141]
[1641415745483,5.50454348,3606.6,3604.5,4.51633]
[1641415745484,7.85,3606.5,3604.5,3.1294]
[1641415745689,0.03303305,3605.9,3604.8,2.81240182]
[1641415745889,0.69395,3605.3,3604.6,3.76351877]
[1641415746188,0.69395,3605.3,3604.7,0.49905839]
[1641415746189,0.00113685,3605.2,3604.7,0.49905839]
[1641415746592,0.6937,3605.0,3604.6,3.26257716]
[1641415746986,0.00113685,3604.9,3604.6,3.26257716]
[1641415747187,0.00113685,3604.9,3604.7,0.52630023]
[1641415747388,0.00113685,3604.9,3604.7,0.48630023]
[1641415747789,0.00113685,3604.9,3604.8,8.9328747]
[1641415748190,3.685e-05,3604.9,3604.8,8.9328747]
[1641415748436,3.685e-05,3604.9,3604.8,11.15284519]
[1641415748638,3.685e-05,3604.9,3604.8,8.25500337]
[1641415749040,3.685e-05,3604.9,3604.8,8.19040346]
[1641415751343,1.38697,3606.4,3605.3,0.69339]
[1641415751344,0.6934,3606.3,3605.3,0.69339]
[1641415751640,0.00568423,3605.9,3605.4,0.49105704]
[1641415752085,0.6934,3606.3,3605.4,0.49105704]
[1641415752086,0.00511581,3605.8,3605.4,0.49105704]
[1641415752478,0.00454738,3605.7,3605.5,1.22716701]
[1641415752879,1.03700685,3606.4,3605.5,1.22716701]
[1641415752880,0.00397896,3605.6,3605.5,1.22716701]
[1641415754488,0.00397896,3605.6,3605.5,6.77416701]
[1641415755688,0.00397896,3605.6,3605.5,5.547]
[1641415755941,0.00397896,3605.6,3605.5,5.54809595]
[1641415756741,0.00397896,3605.6,3605.5,6.68282474]
[1641415758749,2.7737575,3607.0,3605.5,6.68282474]
[1641415758750,4.99806196,3608.3,3605.7,8.67693766]
[1641415758950,1.69687656,3608.9,3608.5,0.57359517]
[1641415759148,3.42575448,3609.4,3608.5,0.57359517]
[1641415759149,3.42575448,3609.4,3608.8,0.01218998]
[1641415759346,3.42575448,3609.4,3608.9,13.8547]
[1641415759584,0.02103167,3609.3,3609.0,0.82693766]
[1641415759787,0.02103167,3609.3,3608.9,13.8547]
[1641415759788,0.02103167,3609.3,3609.2,1.38429361]
[1641415759985,0.737849,3609.6,3609.2,6.92569361]
[1641415760384,0.02216852,3609.6,3609.4,0.82693766]
[1641415760587,0.02216852,3609.6,3609.5,6.36783766]
[1641415760788,0.02216852,3609.6,3609.5,7.70837786]
[1641415761992,0.02216852,3609.6,3609.5,6.36783766]
[1641415764036,8.70056852,3609.6,3609.5,2.68913766]
[1641415764434,0.85056852,3609.6,3609.5,2.68913766]
[1641415764636,0.69296,3609.7,3609.5,2.68913766]
[1641415764938,6e-05,3609.7,3609.5,2.68913766]
[1641415765135,0.08012549,3609.3,3608.4,0.01233264]
[1641415765336,0.08012549,3609.3,3608.5,0.6928836]
[1641415765536,0.08012549,3609.3,3609.0,5.54330527]
[1641415765735,3.54006517,3610.0,3609.0,5.54330527]
[1641415765939,4.23295517,3610.0,3609.1,0.00284212]
[1641415766136,0.00113685,3609.8,3609.2,6.09151526]
[1641415766537,0.00113685,3609.8,3609.3,0.00170527]
[1641415766737,0.00113685,3609.8,3609.4,5.5411]
[1641415767986,2.80220202,3609.9,3609.4,5.5411]
[1641415768187,2.80220202,3609.9,3609.4,6.75922266]
[1641415768388,0.69288,3610.0,3609.5,0.00170527]
[1641415768588,0.69288,3610.0,3609.5,3.13592317]
[1641415768990,0.69288,3610.0,3609.6,0.00113685]
[1641415771129,0.00341054,3610.4,3609.6,0.00113685]
[1641415771328,0.00341054,3610.4,3609.7,5.5406]
[1641415771531,0.00284211,3610.3,3609.7,5.5406]
[1641415771934,0.00227369,3610.2,3610.1,0.48804129]
[1641415772134,0.00227369,3610.2,3610.1,6.02804129]
[1641415773335,0.00227369,3610.2,3610.1,10.45907557]
[1641415775586,0.00227369,3610.2,3610.1,9.97103428]
[1641415775788,0.00227369,3610.2,3610.1,8.6742179]
[1641415775988,5.65227369,3610.2,3610.1,3.1316079]
[1641415776190,0.00227369,3610.2,3610.1,3.1316079]
[1641415776587,0.00227369,3610.2,3610.1,5.5399]
[1641415777188,0.69292,3610.0,3609.8,1.40711882]
[1641415777392,2.76229642,3609.3,3608.9,11.07509642]
[1641415777792,2.76229642,3609.3,3609.0,0.00341054]
[1641415778190,2.4,3609.2,3608.6,0.51257964]
[1641415778433,3.38708684,3609.2,3608.2,1.26898897]
[1641415778633,3.38708684,3609.2,3608.7,0.00170527]
[1641415779437,1.38615,3609.7,3608.8,5.5418]
[1641415779638,0.3,3609.7,3608.8,5.5418]
[1641415779840,0.00113685,3609.4,3608.9,0.00170527]
[1641415780040,0.69297,3609.3,3609.0,5.5417]
[1641415780439,2.98465207,3610.1,3609.1,1.1878755]
[1641415780644,0.3,3610.1,3609.2,5.5414]
[1641415780841,0.3,3610.1,3609.2,5.54537897]
[1641415781038,0.6929038,3610.2,3609.2,5.54537897]
[1641415781039,0.69289,3609.7,3609.3,0.00341054]
[1641415781340,0.69289,3609.7,3609.4,5.5411]
[1641415781539,0.53549,3609.7,3609.4,5.5411]
[1641415781740,1.40819,3609.9,3609.5,0.00227369]
[1641415781940,1.40819,3609.9,3609.6,5.5408]
[1641415782190,0.00113685,3610.1,3609.6,5.5408]
[1641415782391,0.00113685,3610.1,3609.7,0.00113685]
[1641415782590,0.00113685,3610.1,3609.8,5.5405]
[1641415782790,0.00113685,3610.1,3610.0,7.39580148]
[1641415782991,0.00113685,3610.1,3610.0,6.88600148]
[1641415783992,0.00113685,3610.1,3610.0,5.5402]
[1641415784393,3.55,3610.0,3609.7,0.00113685]
[1641415784793,3.55,3610.0,3609.0,0.00511581]
[1641415784990,3.55,3610.0,3608.8,0.00625266]
[1641415784991,1.38588,3609.6,3608.8,0.00625266]
[1641415785192,0.48724288,3609.5,3608.8,0.00625266]
[1641415785391,1.38588,3609.6,3608.8,0.00625266]
[1641415785591,0.69294,3609.5,3608.8,0.00625266]
[1641415785881,0.69294,3609.5,3608.7,0.00682108]
[1641415786456,0.69294,3609.5,3608.6,0.00738951]
[1641415787062,0.6488203,3608.8,3608.0,0.01080005]
[1641415787260,0.6488203,3608.8,3608.3,1.41043451]
[1641415787261,0.69306,3608.4,3608.3,1.41043451]
[1641415787662,0.69306,3608.4,3608.3,1.41952929]
[1641415788264,0.69306,3608.4,3608.3,6.96222929]
[1641415788466,0.69306,3608.4,3608.3,5.55179478]
[1641415790784,0.64306,3608.4,3608.3,5.55179478]
[1641415790988,0.64306,3608.4,3608.3,6.56685342]
[1641415791385,0.64306,3608.4,3608.3,5.55179478]
[1641415792190,3.04306,3608.4,3608.3,0.00627478]
[1641415792389,0.64306,3608.4,3608.3,0.00627478]
[1641415792590,7.1,3608.3,3607.8,2.7287512]
[1641415792790,7.1,3608.3,3607.5,3.76023181]
[1641415792791,1.38665,3608.1,3607.5,3.76023181]
[1641415792991,1.4072,3609.2,3607.9,0.00227369]
[1641415793189,1.4072,3609.2,3608.0,13.8581]
[1641415793439,2.77273,3609.3,3608.0,13.8581]
[1641415793440,0.00454739,3609.1,3608.0,13.8581]
[1641415793641,0.00454739,3609.1,3608.1,0.00113684]
[1641415793837,0.58067409,3608.8,3608.2,13.8573]
[1641415794039,0.69305,3608.6,3608.2,13.8573]
[1641415794436,0.00113685,3608.5,3608.2,13.8573]
[1641415795636,0.00113685,3608.5,3608.2,8.31143]
[1641415796239,0.69436715,3608.5,3608.2,8.31143]
[1641415796437,0.69321,3608.4,3608.2,8.31143]
[1641415796637,0.69321,3608.4,3608.1,0.00113684]
[1641415796638,7.85,3608.3,3608.1,0.00113684]
[1641415796842,7.85,3608.2,3608.1,3.684e-05]
[1641415797091,0.52360842,3607.3,3607.1,0.00572108]
[1641415797291,0.52360842,3607.3,3606.3,4.70144837]
[1641415797292,1.10400842,3607.3,3606.3,4.70144837]
[1641415797491,0.69348,3606.8,3606.4,5.5451]
[1641415797692,0.69348,3606.8,3606.4,5.54907896]
[1641415798091,0.69348,3606.8,3606.5,8.3181]
[1641415798291,0.69348,3606.8,3606.6,5.5454]
[1641415798491,0.69348,3606.8,3606.6,5.54824212]
[1641415798694,0.69348,3606.8,3606.7,0.00227369]
[1641415798896,0.69348,3606.8,3606.7,5.54747369]
[1641415799892,0.69348,3606.8,3606.7,3.12927369]
[1641415799893,5.69348,3606.8,3606.7,3.12927369]
[1641415800095,0.69348,3606.8,3606.7,3.12927369]
[1641415800293,7.85,3606.7,3606.5,8.3181]
[1641415800493,7.85,3606.7,3606.5,1.1725]
[1641415800693,7.85,3606.7,3605.5,4.70254432]
[1641415800694,0.328,3606.6,3605.5,0.00109595]
[1641415800936,4.95,3605.6,3605.3,4.70144837]
[1641415801137,0.914,3605.6,3605.3,4.70144837]
[1641415801536,0.914,3605.6,3605.4,5.55458951]
[1641415801742,1.60778,3605.6,3605.4,0.00438951]
[1641415802039,1.60774,3605.6,3605.4,0.00438951]
[1641415802639,0.64374,3605.6,3605.4,0.00438951]
[1641415802840,1.38696,3606.5,3605.4,0.01722869]
[1641415803042,0.78166417,3607.5,3605.5,0.06490204]
[1641415803240,0.00568424,3606.4,3606.2,0.01259117]
[1641415803441,0.78166417,3607.5,3606.3,1.99504946]
[1641415803442,0.01136847,3607.4,3606.3,1.99504946]
[1641415803640,0.78166417,3607.5,3606.3,12.40475628]
[1641415804044,0.01136847,3607.4,3606.3,12.40475628]
[1641415804240,0.01136847,3607.4,3606.3,11.089]
[1641415804442,0.01080005,3607.3,3606.3,11.089]
[1641415804693,0.01080005,3607.3,3606.8,0.54412272]
[1641415804895,0.01023163,3607.2,3606.9,11.088]
[1641415805093,0.69336,3607.0,3606.9,11.088]
[1641415805494,0.70245478,3607.0,3606.9,11.088]
[1641415805896,8.55245478,3607.0,3605.9,2.82288643]
[1641415806196,0.5530514,3606.2,3605.9,2.82288643]
[1641415806394,0.6936181,3606.1,3605.9,2.82288643]
[1641415806598,0.6936181,3606.1,3605.5,0.09819997]
[1641415806599,0.00397897,3606.1,3605.5,0.09819997]
[1641415806798,0.00341054,3606.0,3605.4,2.82288643]
[1641415807198,0.00284212,3605.9,3605.4,2.82288643]
[1641415807397,0.69365,3605.7,3605.4,2.82288643]
[1641415807598,0.69365,3605.7,3605.0,0.5863133]
[1641415807800,0.00113685,3605.6,3605.0,0.5863133]
[1641415808000,0.00113685,3605.6,3605.1,0.00170527]
[1641415808201,0.00113685,3605.6,3605.3,1.4116223]
[1641415808442,1.38727,3605.4,3605.3,1.4116223]
[1641415809144,1.72618528,3605.4,3605.1,1.41337924]
[1641415809341,2.42004528,3605.4,3605.1,1.41337924]
[1641415809544,2.08113,3605.4,3604.6,2.82288643]
[1641415809741,0.69495685,3605.6,3604.6,2.82288643]
[1641415809742,0.50827882,3604.9,3604.6,2.82288643]
[1641415809944,0.50827882,3604.9,3604.7,0.00227369]
[1641415810142,0.69381,3605.0,3604.7,0.00227369]
[1641415810544,0.69381,3605.0,3604.4,0.00397896]
[1641415810744,0.69381,3605.0,3604.2,0.00511581]
[1641415811143,0.63667429,3604.7,3604.2,0.00511581]
[1641415811345,0.69377,3604.5,3604.2,0.00511581]
[1641415811544,0.0022737,3605.5,3604.2,0.00511581]
[1641415811545,1.3895437,3605.5,3604.2,0.00511581]
[1641415811748,1.3895437,3605.5,3604.4,0.01283815]
[1641415811944,0.00170527,3605.4,3605.0,10.0]
[1641415812186,0.00170527,3605.4,3605.1,5.5477]
[1641415812388,0.00113685,3605.3,3605.2,9.42632209]
[1641415812586,0.00113685,3605.3,3605.2,14.97382209]
[1641415812787,0.00113685,3605.3,3605.2,14.96134732]
[1641415812987,0.00113685,3605.3,3605.2,7.11134732]
[1641415813186,0.00113685,3605.3,3605.2,6.61179246]
[1641415813586,0.5,3606.9,3605.3,4.65]
[1641415813786,0.5,3606.9,3605.4,5.5472]
[1641415813989,3.52110811,3606.9,3606.2,0.01209122]
[1641415814186,3.52110811,3606.9,3606.3,6.13729906]
[1641415814787,4.41156724,3607.1,3606.3,5.61080204]
[1641415814986,4.41156724,3607.1,3606.3,5.5459]
[1641415815186,0.0096632,3607.0,3606.3,5.5459]
[1641415815587,0.70245478,3606.9,3606.3,5.5459]
[1641415816043,0.00852635,3606.8,3606.3,5.5459]
[1641415816443,0.00795793,3606.7,3606.3,5.5459]
[1641415816647,0.00795793,3606.7,3606.4,0.58678795]
[1641415816845,0.5740579,3607.8,3606.5,12.2955]
[1641415816846,0.0073895,3606.6,3606.5,12.2955]
[1641415817050,8.95e-05,3606.6,3606.5,12.2955]
[1641415817246,6.17,3609.1,3607.2,0.69306]
[1641415817247,3.7569,3608.9,3607.2,0.69306]
[1641415817445,3.7569,3608.9,3607.3,5.64249997]
[1641415817745,2.01307374,3608.9,3607.6,0.1985]
[1641415817943,2.01307374,3608.9,3607.7,5.5437]
[1641415817944,3.39920374,3608.9,3607.7,5.5437]
[1641415818149,3.39920374,3608.9,3608.5,0.53071545]
[1641415818344,0.01307374,3608.9,3608.6,5.5423]
[1641415820387,0.01307374,3608.9,3608.6,4.436]
[1641415820588,0.01307374,3608.9,3606.7,3.7404]
[1641415820589,0.04,3608.8,3606.7,3.7404]
[1641415820788,0.04,3608.8,3606.3,2.17727997]
[1641415820988,0.0119369,3608.7,3606.3,2.17727997]
[1641415821289,0.01136847,3608.6,3607.0,0.61577032]
[1641415821486,0.01136847,3608.6,3607.4,1.27135228]
[1641415821687,0.04,3608.8,3607.4,1.27135228]
[1641415821688,0.69323,3608.0,3607.4,1.27135228]
[1641415821892,0.69323,3608.0,3607.5,5.5437]
[1641415822096,0.00738951,3607.9,3607.5,5.5437]
[1641415822494,0.00682109,3607.8,3607.5,5.5437]
[1641415822892,0.69951266,3607.7,3607.5,5.5437]
[1641415823348,0.00568424,3607.6,3607.5,5.5437]
[1641415824149,0.00568424,3607.6,3607.5,6.96789761]
[1641415825148,0.00568424,3607.6,3607.5,10.14830886]
[1641415825348,0.00568424,3607.6,3607.5,6.96789761]
[1641415826952,4.51209,3608.5,3607.6,0.01079742]
[1641415827195,3.819,3608.5,3607.7,5.5437]
[1641415827399,0.00454739,3608.4,3607.7,6.2367902]
[1641415827591,0.00454739,3608.4,3607.7,5.5437]
[1641415827797,0.00397896,3608.3,3607.7,5.5437]
[1641415828200,0.00341054,3608.2,3607.7,5.5437]
[1641415828600,2.772,3608.9,3607.9,7.85]
[1641415828801,2.772,3608.9,3607.8,8.3277589]
[1641415828802,0.0001,3608.9,3608.2,1.385788]
[1641415829000,0.00170527,3608.4,3608.3,13.857]
[1641415829202,0.00170527,3608.4,3608.3,14.35604098]
[1641415829604,0.00170527,3608.4,3608.3,15.48823696]
[1641415830603,0.00170527,3608.4,3608.3,13.857]
[1641415831040,0.00170527,3608.4,3608.3,15.857]
[1641415832442,0.0001,3608.9,3608.3,15.857]
[1641415832646,0.0001,3608.9,3608.5,1.38549]
[1641415832849,0.00227369,3608.8,3608.6,14.84197557]
[1641415833247,1.8576,3609.2,3608.8,0.0022]
[1641415833444,0.15,3610.0,3609.4,0.6927]
[1641415833647,0.15,3610.0,3609.5,15.2377092]
[1641415833845,0.15,3610.0,3609.9,2.0]
[1641415834145,0.15909477,3610.0,3609.9,15.8508]
[1641415834995,0.15909477,3610.0,3609.9,13.8508]
[1641415836196,0.76622463,3610.0,3609.9,13.8508]